fUST/lending_fUST_20250908
["ID","MTS","AMOUNT","RATE_DAILY","PERIOD"]
[384334522,1757341782725,992.96815143,0.00013073,2]
[384334526,1757341792479,992.96815143,0.00013073,2]
[384334527,1757341800403,527.81,0.00012329,2]
[384334528,1757341809103,992.96815143,0.00013073,2]
[384334549,1757341817542,992.96815143,0.00013073,2]
[384334550,1757341821710,806.38,0.00012329,2]
[384334576,1757341832152,305.45,0.00012329,2]
[384334593,1757341834495,992.96815143,0.00013073,2]
[384334605,1757341838386,-344.27777,0.00013205,2]
[384334606,1757341838401,-648.69038143,0.00013205,2]
[384334607,1757341838410,-300.0,0.00013499,2]
[384334608,1757341838419,-133.60961857,0.00013499,2]
[384334609,1757341838431,-166.39038143,0.00013499,2]
[384334610,1757341838441,-300.0,0.00013499,2]
[384334611,1757341838451,-300.0,0.00013499,2]
[384334612,1757341838460,-1200.0,0.00013499,2]
[384334613,1757341838470,-186.76544768,0.00013499,2]
[384334614,1757341838480,-500.0,0.00013499,2]
[384334615,1757341838489,-500.0,0.00013499,2]
[384334616,1757341838498,-242.52709877,0.00013499,2]
[384334617,1757341838508,-6604.31707212,0.000135,2]
[384334945,1757341843248,-417.2165,0.000135,2]
[384334958,1757341843365,-54164.49739575,0.000135,2]
[384334960,1757341843378,-585.86876467,0.000135,2]
[384335445,1757341903351,951.751426,0.00012834,2]
[384335446,1757341903844,749.93926559,0.00012964,2]
[384335447,1757341903918,466.66,0.00012329,2]
[384335448,1757341905087,374.9696328,0.00013094,2]
[384335450,1757341924617,212.12,0.00012329,2]
[384335451,1757341950897,200.0,0.00026788,120]
[384335452,1757341956451,160.0,0.00013172,2]
[384335453,1757342010876,200.0,0.0002703,120]
[384335454,1757342027344,1500.0,0.00013098,2]
[384335455,1757342027730,848.48,0.00012329,2]
[384335459,1757342045281,1500.0,0.00013098,2]
[384335460,1757342055370,1500.0,0.00013098,2]
[384335463,1757342073003,1500.0,0.00013098,2]
[384335464,1757342082215,1500.0,0.00013098,2]
[384335465,1757342099048,1500.0,0.00013098,2]
[384335467,1757342108433,1200.0,0.00013098,2]
[384335468,1757342114507,1000.0,0.00012494,2]
[384335469,1757342124749,1200.0,0.00013098,2]
[384335470,1757342133986,1200.0,0.00013098,2]
[384335471,1757342152140,1200.0,0.00013098,2]
[384335472,1757342161815,1200.0,0.00013098,2]
[384335473,1757342178083,1200.0,0.00013098,2]
[384335474,1757342181599,666.0,0.00012485,2]
[384335475,1757342187655,1200.0,0.00013098,2]
[384335476,1757342200131,314.0979386,6.243e-05,2]
[384335484,1757342205411,1200.0,0.00013098,2]
[384335485,1757342215154,1200.0,0.00013098,2]
[384335511,1757342232358,1200.0,0.00013098,2]
[384335512,1757342259269,1500.0,0.0001313,2]
[384335513,1757342276655,3384.6877574,0.00012407,2]
[384335514,1757342283216,1500.0,0.0001313,2]
[384335515,1757342307877,1500.0,0.0001313,2]
[384335517,1757342331389,1500.0,0.0001313,2]
[384335518,1757342355451,1500.0,0.0001313,2]
[384335520,1757342379843,1500.0,0.0001313,2]
[384335522,1757342395308,39000.0,0.00012397,2]
[384335523,1757342395338,32357.9969251,0.00012397,2]
[384335524,1757342397824,263.9,0.00012329,2]
[384335525,1757342403923,1500.0,0.0001313,2]
[384335526,1757342418979,439.84,0.00012329,2]
[384335527,1757342423022,333.68864,0.00027,120]
[384335528,1757342428544,1500.0,0.0001313,2]
[384335529,1757342429574,193.44,0.00012329,2]
[384335530,1757342435273,200.0,0.00027,120]
[384335532,1757342455053,669.07867532,0.00013065,2]
[384335533,1757342456961,451.09,0.00012329,2]
[384335534,1757342467507,703.71,0.00012329,2]
[384335535,1757342477979,386.26,0.00012329,2]
[384335536,1757342480857,669.07867532,0.00013065,2]
[384335537,1757342504286,669.07867532,0.00013065,2]
[384335538,1757342511228,197.37,0.00012329,2]
[384335539,1757342521686,225.15,0.00012329,2]
[384335540,1757342527750,669.07867532,0.00013065,2]
[384335541,1757342532246,1012.256,0.0002739,120]
[384335542,1757342532337,256.51,0.00012329,2]
[384335543,1757342542716,271.17,0.00012329,2]
[384335544,1757342550823,669.07867532,0.00013065,2]
[384335545,1757342553131,282.92,0.00012329,2]
[384335546,1757342560312,10000.0,0.00012396,2]
[384335547,1757342561719,1000.0,0.0002739,120]
[384335548,1757342563545,302.77,0.00012329,2]
[384335549,1757342574136,669.07867532,0.00013065,2]
[384335550,1757342574313,317.42,0.00012329,2]
[384335551,1757342584861,318.77,0.00012329,2]
[384335552,1757342595304,325.02,0.00012329,2]
[384335553,1757342598491,669.07867532,0.00013065,2]
[384335554,1757342605746,325.69,0.00012329,2]
[384335555,1757342616392,271.41,0.00012329,2]
[384335556,1757342624396,669.07867532,0.00013065,2]
[384335557,1757342627292,336.79,0.00012329,2]
[384335559,1757342637781,334.76,0.00012329,2]
[384335560,1757342645709,1782.7147798,0.00012397,2]
[384335561,1757342648515,278.96,0.00012329,2]
[384335562,1757342650301,1500.0,0.00013107,2]
[384335563,1757342658979,232.47,0.00012329,2]
[384335566,1757342669451,232.47,0.00012329,2]
[384335567,1757342675016,1500.0,0.00013107,2]
[384335568,1757342679925,268.93,0.00012329,2]
[384335570,1757342690409,250.2,0.00012329,2]
[384335571,1757342698554,1500.0,0.00013107,2]
[384335572,1757342700929,338.94,0.00012329,2]
[384335574,1757342711445,282.45,0.00012329,2]
[384335575,1757342721895,235.37,0.00012329,2]
[384335576,1757342722876,1500.0,0.00013107,2]
[384335577,1757342732363,196.14,0.00012329,2]
[384335578,1757342736553,2407.89854134,0.00013107,2]
[384335579,1757342743054,163.45,0.00012329,2]
[384335580,1757342747757,1500.0,0.00013107,2]
[384335581,1757342757616,817.3,0.00012329,2]
[384335582,1757342771696,1500.0,0.00013107,2]
[384335583,1757342795160,1500.0,0.00013107,2]
[384335584,1757342818640,1500.0,0.00013107,2]
[384335585,1757342845169,669.07867532,0.00013066,2]
[384335586,1757342855969,1000.0,0.0002879,120]
[384335587,1757342856426,1000.0,0.0002879,120]
[384335588,1757342856694,1000.0,0.0002879,120]
[384335589,1757342857007,1000.0,0.0002879,120]
[384335590,1757342857106,2407.89854134,0.00013107,2]
[384335591,1757342857300,1000.0,0.0002879,120]
[384335592,1757342857721,1000.0,0.0002879,120]
[384335593,1757342858399,1000.0,0.0002879,120]
[384335594,1757342858796,1000.0,0.0002879,120]
[384335595,1757342859690,1000.0,0.0002879,120]
[384335596,1757342859983,1000.0,0.0002879,120]
[384335597,1757342860266,1000.0,0.0002879,120]
[384335598,1757342860567,1000.0,0.0002879,120]
[384335599,1757342860844,1000.0,0.0002879,120]
[384335600,1757342861127,1000.0,0.0002879,120]
[384335601,1757342861374,1000.0,0.0002879,120]
[384335602,1757342861711,1000.0,0.0002879,120]
[384335603,1757342862019,1000.0,0.0002879,120]
[384335604,1757342862292,1000.0,0.0002879,120]
[384335605,1757342862601,1000.0,0.0002879,120]
[384335606,1757342862944,1000.0,0.0002879,120]
[384335607,1757342863550,497.54662089,0.0002879,120]
[384335608,1757342869492,669.07867532,0.00013066,2]
[384335609,1757342893720,669.07867532,0.00013066,2]
[384335610,1757342917287,669.07867532,0.00013066,2]
[384335611,1757342943583,669.07867532,0.00013066,2]
[384335613,1757342964203,800.0,0.00013162,2]
[384335614,1757342968297,669.07867532,0.00013066,2]
[384335616,1757342992309,669.07867532,0.00013066,2]
[384335619,1757343016158,669.07867532,0.00013066,2]
[384335620,1757343024999,669.07867532,0.00013066,2]
[384335663,1757343032488,-800.0,0.00013269,2]
[384335665,1757343032498,-800.0,0.00013273,2]
[384335667,1757343032508,-800.0,0.00013292,2]
[384335669,1757343032517,-800.0,0.00013352,2]
[384335671,1757343032527,-800.0,0.00013354,2]
[384335673,1757343032537,-1200.0,0.0001337,2]
[384335675,1757343032546,-300.0,0.00013371,2]
[384335677,1757343032555,-300.0,0.00013371,2]
[384335679,1757343032565,-300.0,0.00013371,2]
[384335681,1757343032574,-300.0,0.00013371,2]
[384335683,1757343032585,-300.0,0.00013371,2]
[384335685,1757343032595,-1200.0,0.0001339,2]
[384335687,1757343032604,-669.07867532,0.0001339,2]
[384335689,1757343032613,-24547.29698697,0.0001339,2]
[384335691,1757343032625,-455.9666393,0.0001339,2]
[384335693,1757343032636,-4349.00000001,0.0001339,2]
[384335696,1757343032651,-1184.47085085,0.0001339,2]
[384336242,1757343038377,-2312.02125418,0.0001339,2]
[384336247,1757343038421,-2129.31713282,0.0001339,2]
[384336250,1757343038432,-15021.92713587,0.0001339,2]
[384336253,1757343038442,-500.0,0.00013391,2]
[384336255,1757343038451,-500.0,0.00013391,2]
[384336258,1757343038461,-500.0,0.00013391,2]
[384336260,1757343038472,-500.0,0.00013391,2]
[384336262,1757343038481,-501.15736935,0.00013391,2]
[384336264,1757343038490,-183.88106252,0.00013393,2]
[384336266,1757343038499,-500.0,0.00013393,2]
[384336268,1757343038508,-500.0,0.00013393,2]
[384336270,1757343038516,-500.0,0.00013393,2]
[384336272,1757343038526,-186.76544768,0.00013393,2]
[384336274,1757343038535,-500.0,0.00013393,2]
[384336276,1757343038545,-500.0,0.00013393,2]
[384336278,1757343038554,-500.0,0.00013393,2]
[384336280,1757343038564,-500.0,0.00013393,2]
[384336282,1757343038573,-500.0,0.00013393,2]
[384336284,1757343038583,-500.0,0.00013393,2]
[384336286,1757343038592,-500.0,0.00013393,2]
[384336288,1757343038601,-500.0,0.00013393,2]
[384336290,1757343038611,-500.0,0.00013393,2]
[384336292,1757343038620,-800.0,0.00013394,2]
[384336294,1757343038630,-256.0082963,0.00013398,2]
[384336296,1757343038639,-442.30894407,0.00013398,2]
[384336298,1757343038648,-84756.43857741,0.00013399,2]
[384336300,1757343038660,-84468.67849092,0.00013399,2]
[384336302,1757343038671,-500.0,0.00013442,2]
[384336304,1757343038680,-669.07867528,0.00013442,2]
[384336306,1757343038690,-3705.9830528,0.00013481,2]
[384336312,1757343038740,-500.0,0.00013393,2]
[384336314,1757343038750,-500.0,0.00013393,2]
[384336316,1757343038759,-500.0,0.00013393,2]
[384336318,1757343038769,-27403.63828962,0.00013481,2]
[384336320,1757343038779,-200.0,0.0001349,2]
[384336322,1757343038788,-669.07867528,0.00013494,2]
[384336324,1757343038797,-5687.23582168,0.000135,2]
[384336326,1757343038807,-5645.8235694,0.00013506,2]
[384336328,1757343038817,-59134.1046265,0.00013527,2]
[384336330,1757343038826,-669.07867528,0.00013546,2]
[384336332,1757343038835,-800.0,0.00013581,2]
[384336334,1757343038844,-157.0,0.0001359,2]
[384336336,1757343038853,-669.07867528,0.00013598,2]
[384336338,1757343038863,-500.0,0.00013598,2]
[384336340,1757343038872,-253.95,0.00013599,2]
[384336342,1757343038884,-157.0,0.00013599,2]
[384336344,1757343038895,-500.0,0.00013599,2]
[384336346,1757343038905,-157.0,0.00013599,2]
[384336348,1757343038916,-157.0,0.00013599,2]
[384336349,1757343038926,-500.0,0.00013599,2]
[384336351,1757343038935,-305.18191659,0.00013599,2]
[384336353,1757343038945,-500.0,0.00013599,2]
[384336355,1757343038955,-157.0,0.00013599,2]
[384336357,1757343038964,-500.0,0.00013599,2]
[384336359,1757343038974,-500.0,0.00013599,2]
[384336361,1757343038983,-500.0,0.00013599,2]
[384336363,1757343038994,-157.0,0.00013599,2]
[384336365,1757343039003,-157.0,0.00013599,2]
[384336367,1757343039012,-157.0,0.00013599,2]
[384336369,1757343039022,-157.0,0.00013599,2]
[384336371,1757343039033,-500.0,0.00013599,2]
[384336373,1757343039042,-296.71166127,0.00013599,2]
[384336375,1757343039052,-172.76631583,0.00013599,2]
[384336377,1757343039062,-500.0,0.00013599,2]
[384336379,1757343039071,-500.0,0.00013599,2]
[384336381,1757343039080,-157.0,0.00013599,2]
[384336383,1757343039090,-157.0,0.00013599,2]
[384336385,1757343039099,-429.0,0.00013599,2]
[384336387,1757343039108,-157.0,0.00013599,2]
[384336389,1757343039118,-157.0,0.00013599,2]
[384336391,1757343039128,-157.0,0.00013599,2]
[384336393,1757343039138,-157.0,0.00013599,2]
[384336395,1757343039147,-500.0,0.00013599,2]
[384336397,1757343039156,-500.0,0.00013599,2]
[384336399,1757343039166,-157.0,0.00013599,2]
[384336401,1757343039175,-157.0,0.00013599,2]
[384336403,1757343039184,-308.0,0.00013599,2]
[384336405,1757343039193,-500.0,0.00013599,2]
[384336407,1757343039203,-500.0,0.00013599,2]
[384336409,1757343039212,-157.0,0.00013599,2]
[384336411,1757343039221,-308.34736609,0.00013599,2]
[384336412,1757343039230,-157.0,0.00013599,2]
[384336414,1757343039240,-157.0,0.00013599,2]
[384336416,1757343039249,-500.0,0.00013599,2]
[384336418,1757343039259,-500.46809398,0.00013673,2]
[384336420,1757343039268,-500.0,0.00013673,2]
[384336422,1757343039278,-363.66498283,0.00013673,2]
[384336424,1757343039287,-500.0,0.00013673,2]
[384336426,1757343039297,-501.41367027,0.00013673,2]
[384336428,1757343039306,-500.0,0.00013673,2]
[384336430,1757343039316,-502.6831754,0.00013673,2]
[384336432,1757343039325,-500.8031173,0.00013673,2]
[384336434,1757343039334,-500.0,0.00013673,2]
[384336436,1757343039344,-500.00700734,0.00013673,2]
[384336438,1757343039353,-500.0,0.00013673,2]
[384336440,1757343039363,-162.45900971,0.00013673,2]
[384336442,1757343039373,-500.0,0.00013673,2]
[384336444,1757343039383,-164.36922765,0.00013673,2]
[384336446,1757343039393,-500.0,0.00013673,2]
[384336448,1757343039403,-500.0,0.00013673,2]
[384336450,1757343039412,-500.0,0.00013673,2]
[384336452,1757343039421,-500.0,0.00013673,2]
[384336454,1757343039431,-501.54856755,0.00013673,2]
[384336456,1757343039440,-500.0,0.00013673,2]
[384336458,1757343039449,-500.0,0.00013673,2]
[384336460,1757343039459,-500.0,0.00013673,2]
[384336462,1757343039469,-500.0,0.00013673,2]
[384336464,1757343039478,-500.0,0.00013673,2]
[384336466,1757343039488,-500.0,0.00013673,2]
[384336468,1757343039497,-500.0,0.00013673,2]
[384336470,1757343039507,-500.0,0.00013673,2]
[384336472,1757343039517,-500.0,0.00013673,2]
[384336473,1757343039527,-500.0,0.00013673,2]
[384336475,1757343039536,-500.0,0.00013673,2]
[384336477,1757343039546,-500.0,0.00013673,2]
[384336479,1757343039556,-500.0,0.00013673,2]
[384336481,1757343039566,-500.0,0.00013673,2]
[384336483,1757343039575,-501.27744027,0.00013673,2]
[384336486,1757343039586,-500.0,0.00013673,2]
[384336487,1757343039595,-500.0,0.00013673,2]
[384336489,1757343039605,-428.17695497,0.00013673,2]
[384336491,1757343039615,-19363.40046272,0.00013695,2]
[384336493,1757343039625,-157.0,0.00013698,2]
[384336495,1757343039635,-157.0,0.00013698,2]
[384336497,1757343039644,-480.0,0.00013698,2]
[384336499,1757343039655,-481.77219081,0.00013698,2]
[384336501,1757343039665,-480.0,0.00013698,2]
[384336503,1757343039675,-480.0,0.00013698,2]
[384336505,1757343039688,-240.25273603,0.00013698,2]
[384336507,1757343039703,-480.0,0.00013698,2]
[384336509,1757343039716,-480.0,0.00013698,2]
[384336511,1757343039726,-480.0,0.00013698,2]
[384336513,1757343039736,-480.0,0.00013698,2]
[384336515,1757343039746,-445.12917924,0.00013698,2]
[384336517,1757343039755,-480.0,0.00013698,2]
[384336519,1757343039764,-192.47779192,0.00013698,2]
[384336521,1757343039775,-481.10955087,0.00013698,2]
[384336523,1757343039785,-480.0,0.00013698,2]
[384336525,1757343039794,-480.0,0.00013698,2]
[384336527,1757343039803,-480.0,0.00013698,2]
[384336529,1757343039812,-480.0,0.00013698,2]
[384336531,1757343039822,-480.0,0.00013698,2]
[384336533,1757343039831,-480.0,0.00013698,2]
[384336535,1757343039841,-480.0,0.00013698,2]
[384336537,1757343039850,-480.0,0.00013698,2]
[384336539,1757343039860,-275.80578092,0.00013698,2]
[384336541,1757343039869,-480.0,0.00013698,2]
[384336543,1757343039878,-486.3412864,0.00013698,2]
[384336545,1757343039887,-480.0,0.00013698,2]
[384336547,1757343039897,-485.12721085,0.00013698,2]
[384336549,1757343039907,-480.0,0.00013698,2]
[384336551,1757343039919,-480.0,0.00013698,2]
[384336554,1757343039929,-480.0,0.00013698,2]
[384336556,1757343039939,-481.4604028,0.00013698,2]
[384336558,1757343039948,-480.0,0.00013698,2]
[384336561,1757343039959,-480.0,0.00013698,2]
[384336564,1757343039968,-480.0,0.00013698,2]
[384336566,1757343039978,-480.0,0.00013698,2]
[384336568,1757343039987,-480.0,0.00013698,2]
[384336570,1757343039998,-480.0,0.00013698,2]
[384336572,1757343040008,-480.0,0.00013698,2]
[384336574,1757343040017,-480.0,0.00013698,2]
[384336576,1757343040027,-255.54400196,0.00013698,2]
[384336578,1757343040037,-481.34941538,0.00013698,2]
[384336580,1757343040046,-480.0,0.00013698,2]
[384336582,1757343040056,-480.0,0.00013698,2]
[384336584,1757343040066,-480.0,0.00013698,2]
[384336586,1757343040076,-480.0,0.00013698,2]
[384336588,1757343040086,-480.0,0.00013698,2]
[384336590,1757343040096,-480.0,0.00013698,2]
[384336592,1757343040105,-480.0,0.00013698,2]
[384336594,1757343040116,-480.0,0.00013698,2]
[384336596,1757343040125,-482.7754605,0.00013698,2]
[384336598,1757343040135,-480.0,0.00013698,2]
[384336600,1757343040145,-480.0,0.00013698,2]
[384336602,1757343040154,-480.0,0.00013698,2]
[384336604,1757343040163,-480.0,0.00013698,2]
[384336606,1757343040172,-480.0,0.00013698,2]
[384336608,1757343040182,-480.0,0.00013698,2]
[384336610,1757343040191,-480.0,0.00013698,2]
[384336612,1757343040200,-480.0,0.00013698,2]
[384336614,1757343040209,-480.0,0.00013698,2]
[384336616,1757343040219,-480.0,0.00013698,2]
[384336618,1757343040229,-480.0,0.00013698,2]
[384336619,1757343040239,-481.46141237,0.00013698,2]
[384336622,1757343040248,-480.0,0.00013698,2]
[384336623,1757343040258,-480.0,0.00013698,2]
[384336625,1757343040267,-480.0,0.00013698,2]
[384336627,1757343040276,-481.0676304,0.00013698,2]
[384336629,1757343040286,-480.0,0.00013698,2]
[384336631,1757343040295,-480.0,0.00013698,2]
[384336633,1757343040304,-480.0,0.00013698,2]
[384336635,1757343040314,-480.0,0.00013698,2]
[384336637,1757343040324,-480.0,0.00013698,2]
[384336639,1757343040333,-480.0,0.00013698,2]
[384336641,1757343040342,-480.93392864,0.00013698,2]
[384336643,1757343040352,-480.0,0.00013698,2]
[384336645,1757343040361,-480.0,0.00013698,2]
[384336647,1757343040371,-331.74291337,0.00013698,2]
[384336649,1757343040381,-437.81514656,0.00013698,2]
[384336651,1757343040390,-480.0,0.00013698,2]
[384336653,1757343040399,-480.0,0.00013698,2]
[384336655,1757343040409,-480.0,0.00013698,2]
[384336657,1757343040419,-480.0,0.00013698,2]
[384336659,1757343040429,-480.67519581,0.00013698,2]
[384336661,1757343040439,-480.0,0.00013698,2]
[384336663,1757343040448,-480.0,0.00013698,2]
[384336665,1757343040458,-480.0,0.00013698,2]
[384336667,1757343040467,-480.0,0.00013698,2]
[384336669,1757343040476,-480.0,0.00013698,2]
[384336671,1757343040486,-480.0,0.00013698,2]
[384336673,1757343040495,-480.0,0.00013698,2]
[384336675,1757343040505,-480.0,0.00013698,2]
[384336677,1757343040515,-480.0,0.00013698,2]
[384336679,1757343040524,-480.0,0.00013698,2]
[384336681,1757343040534,-480.0,0.00013698,2]
[384336683,1757343040543,-480.0,0.00013698,2]
[384336685,1757343040553,-480.0,0.00013698,2]
[384336687,1757343040562,-480.0,0.00013698,2]
[384336689,1757343040572,-480.0,0.00013698,2]
[384336691,1757343040581,-480.0,0.00013698,2]
[384336692,1757343040591,-480.0,0.00013698,2]
[384336693,1757343040600,-480.0,0.00013698,2]
[384336694,1757343040611,-480.0,0.00013698,2]
[384336695,1757343040620,-480.64569854,0.00013698,2]
[384336696,1757343040630,-480.0,0.00013698,2]
[384336697,1757343040640,-480.0,0.00013698,2]
[384336698,1757343040650,-480.61745105,0.00013698,2]
[384336700,1757343040660,-480.0,0.00013698,2]
[384336702,1757343040669,-480.0,0.00013698,2]
[384336704,1757343040679,-480.0,0.00013698,2]
[384336706,1757343040688,-480.0,0.00013698,2]
[384336708,1757343040697,-480.0,0.00013698,2]
[384336710,1757343040707,-625.47572958,0.00013698,2]
[384336712,1757343040717,-480.0,0.00013698,2]
[384336714,1757343040726,-480.0,0.00013698,2]
[384336716,1757343040735,-480.0,0.00013698,2]
[384336718,1757343040744,-481.17365304,0.00013698,2]
[384336720,1757343040754,-481.39774645,0.00013698,2]
[384336722,1757343040763,-480.0,0.00013698,2]
[384336724,1757343040772,-480.0,0.00013698,2]
[384336726,1757343040781,-480.0,0.00013698,2]
[384336728,1757343040791,-480.0,0.00013698,2]
[384336730,1757343040800,-480.0,0.00013698,2]
[384336732,1757343040809,-480.0,0.00013698,2]
[384336734,1757343040818,-482.09117241,0.00013698,2]
[384336736,1757343040827,-480.0,0.00013698,2]
[384336738,1757343040837,-480.0,0.00013698,2]
[384336740,1757343040847,-488.51780875,0.00013698,2]
[384336742,1757343040856,-480.0,0.00013698,2]
[384336744,1757343040867,-480.0,0.00013698,2]
[384336767,1757343041084,-480.0,0.00013698,2]
[384336769,1757343041094,-480.0,0.00013698,2]
[384336771,1757343041104,-515.98892883,0.00013698,2]
[384336773,1757343041114,-480.0,0.00013698,2]
[384336775,1757343041124,-480.0,0.00013698,2]
[384336777,1757343041133,-480.0,0.00013698,2]
[384336779,1757343041143,-480.0,0.00013698,2]
[384336781,1757343041153,-480.0,0.00013698,2]
[384336783,1757343041163,-151.0,0.00013698,2]
[384336785,1757343041172,-480.0,0.00013698,2]
[384336787,1757343041182,-480.0,0.00013698,2]
[384336789,1757343041191,-151.0,0.00013698,2]
[384336791,1757343041201,-151.0,0.00013698,2]
[384336793,1757343041210,-480.0,0.00013698,2]
[384336795,1757343041219,-480.0,0.00013698,2]
[384336797,1757343041228,-480.0,0.00013698,2]
[384336799,1757343041238,-480.0,0.00013698,2]
[384336801,1757343041248,-480.0,0.00013698,2]
[384336803,1757343041257,-151.0,0.00013698,2]
[384336805,1757343041266,-480.0,0.00013698,2]
[384336807,1757343041276,-480.0,0.00013698,2]
[384336809,1757343041286,-480.0,0.00013698,2]
[384336811,1757343041295,-480.0,0.00013698,2]
[384336813,1757343041305,-480.0,0.00013698,2]
[384336815,1757343041315,-480.71691963,0.00013698,2]
[384336817,1757343041324,-480.0,0.00013698,2]
[384336819,1757343041333,-480.0,0.00013698,2]
[384336821,1757343041343,-480.0,0.00013698,2]
[384336823,1757343041352,-480.0,0.00013698,2]
[384336825,1757343041361,-151.0,0.00013698,2]
[384336827,1757343041371,-480.0,0.00013698,2]
[384336829,1757343041380,-151.0,0.00013698,2]
[384336831,1757343041389,-481.24682915,0.00013698,2]
[384336833,1757343041399,-586.35891208,0.00013698,2]
[384336835,1757343041408,-480.0,0.00013698,2]
[384336837,1757343041418,-480.0,0.00013698,2]
[384336839,1757343041427,-480.0,0.00013698,2]
[384336841,1757343041436,-480.0,0.00013698,2]
[384336843,1757343041446,-480.0,0.00013698,2]
[384336845,1757343041455,-480.0,0.00013698,2]
[384336847,1757343041465,-480.0,0.00013698,2]
[384336849,1757343041474,-483.12718541,0.00013698,2]
[384336851,1757343041484,-480.0,0.00013698,2]
[384336853,1757343041494,-483.24575609,0.00013698,2]
[384336855,1757343041503,-151.0,0.00013698,2]
[384336857,1757343041513,-480.0,0.00013698,2]
[384336859,1757343041523,-480.0,0.00013698,2]
[384336861,1757343041532,-480.0,0.00013698,2]
[384336863,1757343041541,-480.0,0.00013698,2]
[384336865,1757343041549,-480.0,0.00013698,2]
[384336867,1757343041559,-480.0,0.00013698,2]
[384336869,1757343041568,-480.0,0.00013698,2]
[384336871,1757343041578,-480.0,0.00013698,2]
[384336873,1757343041588,-484.37658808,0.00013698,2]
[384336876,1757343041597,-480.0,0.00013698,2]
[384336878,1757343041607,-480.0,0.00013698,2]
[384336880,1757343041617,-484.33138824,0.00013698,2]
[384336881,1757343041627,-480.0,0.00013698,2]
[384336883,1757343041636,-480.0,0.00013698,2]
[384336886,1757343041645,-482.51143571,0.00013698,2]
[384336888,1757343041655,-486.20705325,0.00013698,2]
[384336890,1757343041665,-480.0,0.00013698,2]
[384336892,1757343041675,-480.0,0.00013698,2]
[384336894,1757343041684,-480.0,0.00013698,2]
[384336895,1757343041693,-480.0,0.00013698,2]
[384336897,1757343041703,-480.0,0.00013698,2]
[384336900,1757343041713,-334.8039377,0.00013698,2]
[384336902,1757343041722,-480.0,0.00013698,2]
[384336904,1757343041731,-480.0,0.00013698,2]
[384336905,1757343041741,-480.0,0.00013698,2]
[384336908,1757343041750,-233.78403224,0.00013698,2]
[384336909,1757343041760,-480.0,0.00013698,2]
[384336912,1757343041769,-480.0,0.00013698,2]
[384336913,1757343041779,-480.0,0.00013698,2]
[384336916,1757343041788,-159.39827,0.00013698,2]
[384336917,1757343041798,-481.53506397,0.00013698,2]
[384336920,1757343041807,-480.0,0.00013698,2]
[384336921,1757343041817,-159.39827,0.00013698,2]
[384336923,1757343041826,-151.0,0.00013698,2]
[384336925,1757343041836,-481.77582591,0.00013698,2]
[384336928,1757343041845,-159.39827,0.00013698,2]
[384336930,1757343041855,-151.0,0.00013698,2]
[384336931,1757343041865,-159.39827,0.00013698,2]
[384336933,1757343041874,-480.0,0.00013698,2]